bitfinex/quotes_SOLUSD_20250206
["timestamp","ask_amount","ask_price","bid_price","bid_amount"]
[1738832484661,16.49800242,201.16,201.09,14.82790242]
[1738832484868,6.6412,201.16,201.09,14.82790242]
[1738832485782,0.063,201.16,201.12,14.82790242]
[1738832486101,0.063,201.16,201.09,0.25098]
[1738832486102,0.063,201.16,201.13,14.82790242]
[1738832487690,0.063,201.16,201.14,14.82790242]
[1738832488667,0.063,201.16,201.14,19.79950242]
[1738832489262,0.063,201.16,201.14,14.82790242]
[1738832489489,0.063,201.16,201.1,14.82790242]
[1738832489975,0.063,201.16,201.11,14.82790242]
[1738832491181,0.063,201.16,201.12,14.82790242]
[1738832491778,0.063,201.16,201.09,14.82790242]
[1738832492100,14.82790242,201.11,201.04,14.82790242]
[1738832492280,14.82790242,201.1,201.03,14.82790242]
[1738832492994,4.9726,201.1,201.04,14.82790242]
[1738832493197,4.9726,201.1,201.05,14.82790242]
[1738832493496,4.9726,201.1,201.04,14.82790242]
[1738832493804,97.22790242,201.09,201.02,14.82790242]
[1738832494179,82.4,201.09,201.03,14.82790242]
[1738832494582,82.4,201.09,201.04,14.82790242]
[1738832494785,82.4,201.09,201.03,14.82790242]
[1738832495171,4.9731,201.08,201.03,14.82790242]
[1738832496189,4.9731,201.08,201.02,14.82790242]
[1738832496575,4.9731,201.08,201.03,14.82790242]
[1738832496994,87.3729,201.09,201.03,14.82790242]
[1738832497798,82.4,201.09,201.05,14.82790242]
[1738832497982,82.4,201.09,201.07,14.82790242]
[1738832498178,82.4,201.09,201.06,14.82790242]
[1738832498385,82.4,201.09,201.05,14.82790242]
[1738832499303,87.373,201.09,201.05,14.82790242]
[1738832501095,82.4,201.09,201.05,14.82790242]
[1738832501800,87.373,201.09,201.03,14.82790242]
[1738832502690,102.26390242,201.09,201.02,14.82790242]
[1738832504006,14.82790242,201.08,201.01,14.82790242]
[1738832504222,14.82790242,201.07,201.0,14.82790242]
[1738832504428,14.82790242,201.05,200.98,15.07888242]
[1738832504583,117.22790242,201.06,200.98,15.07888242]
[1738832504917,117.22790242,201.06,200.99,14.82790242]
[1738832505285,102.4,201.06,201.01,14.82790242]
[1738832505514,102.4,201.06,201.02,14.82790242]
[1738832505822,102.4,201.06,201.01,14.82790242]
[1738832506430,82.4,201.06,201.01,14.82790242]
[1738832506584,82.4,201.06,201.02,14.82790242]
[1738832507027,87.3736,201.06,201.01,14.82790242]
[1738832507816,87.3736,201.06,201.02,14.82790242]
[1738832508606,82.4,201.06,201.03,14.82790242]
[1738832508781,82.4,201.06,201.05,14.82790242]
[1738832508994,0.063,201.09,201.06,0.25098]
[1738832509322,0.063,201.09,201.08,14.82790242]
[1738832511404,0.063,201.09,201.08,15.07888242]
[1738832511905,0.063,201.09,201.08,20.05198242]
[1738832512210,0.063,201.09,201.08,20.30296242]
[1738832513129,0.063,201.09,201.08,15.07888242]
[1738832513491,0.063,201.09,201.08,14.82790242]
[1738832514001,0.063,201.09,201.02,14.82790242]
[1738832514338,0.063,201.09,200.95,18.15278581]
[1738832514339,14.82790242,201.08,201.01,14.82790242]
[1738832514728,14.89090242,201.09,201.01,14.82790242]
[1738832515715,20.97480242,201.09,201.01,14.82790242]
[1738832515884,4.9731,201.08,201.01,14.82790242]
[1738832516285,1.5298,201.07,201.01,14.82790242]
[1738832516911,6.5032,201.07,201.01,14.82790242]
[1738832518316,6.5032,201.07,201.02,14.82790242]
[1738832518608,1.5298,201.07,201.02,14.82790242]
[1738832519217,1.5298,201.07,201.03,14.82790242]
[1738832519414,1.5298,201.07,201.02,0.12549]
[1738832519621,0.063,201.09,201.05,14.82790242]
[1738832520697,0.063,201.09,201.03,14.82790242]
[1738832522312,0.063,201.09,201.01,0.25098]
[1738832522313,4.9736,201.06,201.01,0.25098]
[1738832522515,4.9736,201.06,201.02,14.82790242]
[1738832522722,4.9731,201.08,201.02,14.82790242]
[1738832524119,14.89090242,201.09,201.02,14.82790242]
[1738832526321,0.063,201.09,201.05,14.82790242]
[1738832526500,0.063,201.09,201.07,14.82790242]
[1738832527012,0.063,201.09,201.08,0.37647]
[1738832527197,0.063,201.09,201.08,15.20437242]
[1738832527808,0.063,201.09,201.08,15.32986242]
[1738832527998,0.063,201.09,201.08,28.74171095]
[1738832528621,0.063,201.09,201.08,33.71481095]
[1738832529932,0.063,201.09,201.08,50.28840857]
[1738832530113,0.063,201.09,201.08,49.28840857]
[1738832530301,0.063,201.09,201.08,34.46050615]
[1738832530501,0.063,201.09,201.08,35.46050615]
[1738832530723,0.063,201.09,201.08,50.28840857]
[1738832531720,0.063,201.09,201.08,35.46050615]
[1738832532802,0.063,201.09,201.08,50.28840857]
[1738832533428,0.063,201.09,201.08,35.46050615]
[1738832534023,0.063,201.09,201.08,15.32986242]
[1738832534224,0.063,201.09,201.08,15.20437242]
[1738832534404,0.063,201.09,201.08,0.25098]
[1738832535220,0.063,201.09,201.08,15.07888242]
[1738832535400,0.063,201.09,201.08,15.32986242]
[1738832536227,0.063,201.09,201.08,33.71481095]
[1738832537703,0.0001,201.09,201.08,34.71481095]
[1738832538029,0.063,201.16,201.11,13.91380853]
[1738832538220,0.063,201.16,201.15,20.30126242]
[1738832538935,0.063,201.21,201.15,33.71311095]
[1738832539143,0.063,201.21,201.2,43.56961337]
[1738832539308,0.063,201.21,201.2,44.31489464]
[1738832540327,0.00933871,201.29,201.24,21.50196]
[1738832540520,0.00933871,201.29,201.28,28.74171095]
[1738832541604,0.00933871,201.29,201.28,43.56961337]
[1738832541808,0.00933871,201.29,201.28,44.31453899]
[1738832542530,0.00933871,201.29,201.28,49.28273899]
[1738832542806,0.063,201.3,201.29,13.91380853]
[1738832543007,0.063,201.3,201.29,43.56961337]
[1738832543207,0.063,201.33,201.32,33.91380853]
[1738832543404,0.063,201.33,201.32,48.74171095]
[1738832544715,0.063,201.33,201.32,53.70891095]
[1738832546934,0.063,201.35,201.33,13.91380853]
[1738832547124,0.063,201.35,201.34,29.48643526]
[1738832548520,0.063,201.35,201.34,34.45313526]
[1738832548727,0.063,201.35,201.34,33.70841095]
[1738832553453,0.063,201.37,201.36,20.37647]
[1738832553650,0.063,201.37,201.36,35.20437242]
[1738832553838,0.063,201.37,201.36,48.74171095]
[1738832554142,0.063,201.37,201.36,53.70791095]
[1738832555145,0.063,201.37,201.36,33.70791095]
[1738832555966,0.063,201.37,201.36,34.4525745]
[1738832561530,0.063,201.45,201.44,15.07888242]
[1738832562265,0.063,201.45,201.44,15.20437242]
[1738832562753,0.063,201.45,201.44,20.16857242]
[1738832563142,0.063,201.45,201.44,15.20437242]
[1738832563341,0.063,201.45,201.41,14.82790242]
[1738832565570,0.063,201.45,201.44,15.07888242]
[1738832565779,0.063,201.45,201.44,15.20437242]
[1738832567275,0.063,201.45,201.44,20.16857242]
[1738832567472,0.063,201.45,201.44,33.70591095]
[1738832570142,0.063,201.45,201.44,34.45024733]
[1738832570998,0.063,201.45,201.44,33.70591095]
[1738832571288,0.063,201.45,201.44,15.20437242]
[1738832571455,0.063,201.45,201.44,20.16857242]
[1738832572261,0.063,201.45,201.41,0.74453564]
[1738832572466,0.063,201.45,201.39,14.82790242]
[1738832572690,0.063,201.45,201.4,0.37647]
[1738832572894,1.57652039,201.46,201.4,0.37647]
[1738832573468,6.54052039,201.46,201.4,15.20437242]
[1738832575505,6.54052039,201.46,201.41,14.82790242]
[1738832575680,6.54052039,201.46,201.4,15.20437242]
[1738832576176,6.54052039,201.46,201.4,14.82790242]
[1738832578265,6.54052039,201.46,201.41,14.82790242]
[1738832578468,1.57652039,201.46,201.43,14.82790242]
[1738832578693,6.54032039,201.46,201.42,14.82790242]
[1738832578985,6.54032039,201.46,201.41,14.82790242]
[1738832581765,1.57652039,201.46,201.43,14.82790242]
[1738832582389,82.463,201.5,201.45,14.82790242]
[1738832582390,0.063,201.5,201.45,14.82790242]
[1738832582571,0.063,201.5,201.48,14.82790242]
[1738832583085,0.063,201.5,201.44,0.25098]
[1738832583086,0.063,201.5,201.47,14.82790242]
[1738832583297,0.063,201.5,201.46,14.82790242]
[1738832583593,5.0258,201.5,201.46,14.82790242]
[1738832584785,0.063,201.5,201.47,0.37647]
[1738832585787,0.063,201.5,201.48,14.82790242]
[1738832586392,0.063,201.5,201.47,15.20437242]
[1738832588296,0.063,201.5,201.47,14.82790242]
[1738832588996,0.063,201.5,201.45,14.82790242]
[1738832590895,0.063,201.5,201.47,14.82790242]
[1738832591769,0.063,201.5,201.45,14.82790242]
[1738832591995,0.063,201.5,201.46,0.37647]
[1738832592866,0.063,201.5,201.47,14.82790242]
[1738832593266,0.063,201.5,201.49,15.20437242]
[1738832594480,0.063,201.5,201.49,20.16737242]
[1738832594685,0.063,201.5,201.49,33.70471095]
[1738832594877,0.063,201.54,201.52,20.0]
[1738832595205,0.063,201.54,201.53,28.74171095]
[1738832596400,0.063,201.54,201.53,33.70371095]
[1738832596574,0.063,201.54,201.52,14.82790242]
[1738832596778,0.063,201.54,201.51,14.82790242]
[1738832597080,0.063,201.54,201.53,14.82790242]
[1738832597287,0.063,201.54,201.53,15.20437242]
[1738832598075,0.063,201.54,201.53,28.74171095]
[1738832598587,0.063,201.54,201.53,33.70371095]
[1738832600199,0.01596924,201.58,201.57,20.0]
[1738832600395,0.063,201.6,201.59,13.78831853]
[1738832600704,0.063,201.6,201.59,44.1879591]
[1738832600879,0.063,201.65,201.63,13.91380853]
[1738832601086,0.063,201.65,201.64,15.20437242]
[1738832602095,0.063,201.65,201.64,33.70101095]
[1738832606102,0.063,201.65,201.64,15.20437242]
[1738832606316,0.063,201.65,201.63,14.82790242]
[1738832607910,0.063,201.65,201.62,14.82790242]
[1738832608212,0.063,201.65,201.6,14.82790242]
[1738832608410,0.063,201.65,201.6,0.37647]
[1738832608598,0.063,201.65,201.59,14.82790242]
[1738832608989,1.5809,201.64,201.56,14.82790242]
[1738832609210,14.82790242,201.63,201.56,14.82790242]
[1738832609802,4.9595,201.63,201.56,14.82790242]
[1738832610219,4.9595,201.63,201.58,15.20437242]
[1738832610686,4.9595,201.63,201.59,14.82790242]
[1738832610888,6.5402,201.64,201.6,14.82790242]
[1738832612006,0.063,201.63,201.6,14.82790242]
[1738832612201,0.063,201.63,201.58,0.37647]
[1738832612202,0.063,201.63,201.62,14.82790242]
[1738832612432,0.063,201.63,201.62,15.20437242]
[1738832614709,0.063,201.63,201.61,14.82790242]
[1738832615205,0.063,201.63,201.62,14.82790242]
[1738832617927,0.063,201.63,201.61,14.82790242]
[1738832618123,0.063,201.63,201.6,14.82790242]
[1738832618428,0.063,201.63,201.59,14.82790242]
[1738832619616,82.4,201.62,201.57,14.82790242]
[1738832620123,82.4,201.62,201.58,14.82790242]
[1738832621202,1.5854,201.61,201.56,14.82790242]
[1738832623832,4.9603,201.6,201.54,15.07888242]
[1738832624133,4.9603,201.6,201.57,14.82790242]
[1738832625003,4.9603,201.6,201.56,14.85790242]
[1738832625731,87.3603,201.6,201.56,14.85790242]
[1738832626313,14.82790242,201.58,201.56,0.03]
[1738832626514,97.22790242,201.57,201.56,0.03]
[1738832627434,14.82790242,201.57,201.56,0.03]
[1738832627815,19.78890242,201.57,201.56,0.03]
[1738832628847,4.961,201.57,201.56,0.03]
[1738832629129,4.9605,201.59,201.56,0.03]
[1738832629817,14.82790242,201.58,201.56,0.03]
[1738832630136,34.82790242,201.57,201.56,0.03]
[1738832630729,34.82790242,201.57,201.56,0.0001]
[1738832631237,2.6145,201.56,201.49,0.03]
[1738832631533,14.82790242,201.53,201.49,0.03]
[1738832631917,4.9622,201.52,201.49,0.03]
[1738832632241,14.82790242,201.51,201.49,0.03]
[1738832633155,102.19010242,201.52,201.49,0.03]
[1738832635743,87.3622,201.52,201.49,0.03]
[1738832637534,82.4,201.51,201.49,0.03]
[1738832637947,87.3625,201.51,201.49,0.03]
[1738832639442,97.22790242,201.5,201.49,0.03]
[1738832639618,82.4,201.5,201.49,0.03]
[1738832640118,87.3627,201.5,201.49,0.03]
[1738832640323,102.19060242,201.5,201.49,0.03]
[1738832642232,87.3627,201.5,201.49,0.03]
[1738832643563,39.79060242,201.5,201.49,0.03]
[1738832644233,19.79060242,201.5,201.49,0.03]
[1738832645335,39.79060242,201.5,201.49,0.03]
[1738832646359,20.0,201.47,201.38,14.82790242]
[1738832646651,14.82790242,201.45,201.38,14.82790242]
[1738832647959,4.9642,201.44,201.38,14.82790242]
[1738832648454,82.4,201.43,201.37,14.82790242]
[1738832648756,82.4,201.43,201.37,15.20437242]
[1738832648954,82.4,201.43,201.39,14.82790242]
[1738832650841,82.4,201.43,201.41,14.82790242]
[1738832652860,82.4,201.43,201.42,14.82790242]
[1738832653159,82.4,201.43,201.42,15.20437242]
[1738832653338,82.4,201.43,201.42,28.74171095]
[1738832653535,4.9625,201.51,201.44,0.37647]
[1738832653746,82.4,201.5,201.46,14.82790242]
[1738832653958,82.4,201.5,201.47,14.82790242]
[1738832654865,87.3629,201.5,201.45,14.82790242]
[1738832655336,102.19080242,201.5,201.43,14.82790242]
[1738832656039,87.3629,201.5,201.44,14.82790242]
[1738832657061,87.3629,201.5,201.45,14.82790242]
[1738832658864,87.3629,201.5,201.43,14.82790242]
[1738832659166,102.19080242,201.5,201.43,14.82790242]
[1738832659669,82.4,201.5,201.44,15.20437242]
[1738832659960,87.3627,201.5,201.44,15.20437242]
[1738832660165,87.3627,201.5,201.45,0.03]
[1738832660349,82.4,201.5,201.45,14.85790242]
[1738832660885,87.3628,201.5,201.45,14.85790242]
[1738832662464,82.4,201.5,201.48,14.82790242]
[1738832662950,82.4,201.54,201.49,15.20437242]
[1738832663154,82.4,201.54,201.51,14.82790242]
[1738832663765,82.4,201.54,201.53,14.82790242]
[1738832666259,0.063,201.56,201.54,0.37647]
[1738832666462,0.063,201.56,201.55,14.82790242]
[1738832666961,0.063,201.56,201.55,28.61622095]
[1738832667665,0.063,201.56,201.55,33.70321095]
[1738832672268,0.063,201.6,201.58,20.0]
[1738832672483,0.063,201.6,201.59,28.74171095]
[1738832673616,0.063,201.6,201.59,33.70221095]
[1738832674487,0.063,201.6,201.59,15.20437242]
[1738832674695,0.063,201.6,201.59,28.61622095]
[1738832675885,0.063,201.6,201.59,15.20437242]
[1738832676370,0.063,201.6,201.59,28.61622095]
[1738832676981,0.063,201.6,201.59,28.74171095]
[1738832677293,0.063,201.6,201.59,33.70221095]
[1738832677801,0.063,201.6,201.59,33.57672095]
[1738832677997,0.063,201.6,201.59,28.61622095]
[1738832678172,0.063,201.6,201.59,0.37647]
[1738832678377,0.063,201.6,201.56,14.82790242]
[1738832678681,0.063,201.6,201.59,28.61622095]
[1738832679187,0.063,201.6,201.59,33.57672095]
[1738832679986,0.063,201.6,201.59,28.61622095]
[1738832680192,0.063,201.6,201.58,14.82790242]
[1738832680378,0.063,201.6,201.57,14.82790242]
[1738832680889,0.063,201.6,201.56,28.61622095]
[1738832681066,0.063,201.6,201.55,14.82790242]
[1738832681567,14.89090242,201.6,201.53,28.23975095]
[1738832681876,82.4,201.59,201.53,28.23975095]
[1738832682069,82.4,201.59,201.53,14.82790242]
[1738832682269,82.4,201.59,201.54,14.82790242]
[1738832682662,82.4,201.59,201.55,0.37647]
[1738832682870,82.4,201.59,201.55,15.20437242]
[1738832683995,82.4,201.59,201.55,0.37647]
[1738832684172,82.4,201.59,201.54,14.82790242]
[1738832684373,87.3606,201.59,201.54,14.82790242]
[1738832685097,82.4,201.58,201.54,14.82790242]
[1738832685398,82.4,201.58,201.55,15.20437242]
[1738832686288,82.4,201.58,201.55,0.37647]
[1738832686793,82.4,201.58,201.57,0.37647]
[1738832687094,82.4,201.58,201.57,28.61622095]
[1738832688886,0.063,201.59,201.58,13.91380853]
[1738832690600,0.063,201.59,201.58,28.74171095]
[1738832690775,0.063,201.59,201.58,33.70251095]
[1738832691297,0.063,201.59,201.58,48.53041337]
[1738832692098,0.063,201.59,201.58,33.70251095]
[1738832696724,0.063,201.59,201.58,28.61622095]
[1738832698917,0.063,201.59,201.55,14.82790242]
[1738832699324,0.063,201.59,201.56,0.37647]
[1738832701720,0.063,201.59,201.55,14.82790242]
[1738832701933,1.6192,201.59,201.54,0.03]
[1738832702423,1.6192,201.59,201.54,14.85790242]
[1738832705928,6.5798,201.59,201.55,14.82790242]
[1738832707527,82.4,201.58,201.54,0.03]
[1738832707833,14.82790242,201.57,201.54,0.03]
[1738832708015,82.4,201.58,201.54,0.03]
[1738832708016,14.82790242,201.56,201.54,0.03]
[1738832708530,14.82790242,201.55,201.54,0.03]
[1738832709415,4.9615,201.55,201.54,0.03]
[1738832711033,19.78940242,201.55,201.54,0.03]
[1738832712424,20.0,201.52,201.45,0.03]
[1738832712631,14.82790242,201.5,201.45,0.03]
[1738832712804,1.5093,201.51,201.46,14.82790242]
[1738832713530,1.5093,201.51,201.45,14.85790242]
[1738832714104,1.5093,201.51,201.46,14.82790242]
[1738832715433,6.472,201.51,201.46,14.82790242]
[1738832716117,6.472,201.51,201.47,14.82790242]
[1738832716517,6.472,201.51,201.45,14.85790242]
[1738832717727,87.3627,201.5,201.45,14.85790242]
[1738832718211,87.3627,201.5,201.46,14.82790242]
[1738832718511,87.3627,201.5,201.47,14.82790242]
[1738832718829,82.4,201.5,201.49,9.46234998]
[1738832719029,82.4,201.5,201.49,9.83881998]
[1738832719332,87.3613,201.56,201.5,0.37647]
[1738832719638,82.4,201.55,201.51,9.46234998]
[1738832719929,82.4,201.55,201.52,9.46234998]
[1738832720323,87.3616,201.55,201.51,9.46234998]
[1738832720725,87.3616,201.55,201.52,9.46234998]
[1738832720924,82.4,201.55,201.52,9.46234998]
[1738832721121,82.4,201.55,201.51,9.46234998]
[1738832721331,87.3616,201.55,201.51,9.46234998]
[1738832721621,0.063,201.54,201.52,9.46234998]
[1738832722411,0.063,201.54,201.51,9.46234998]
[1738832725141,0.063,201.54,201.53,9.46234998]
[1738832726823,0.063,201.54,201.53,9.83881998]
[1738832727213,0.063,201.54,201.53,14.80081998]
[1738832727412,0.063,201.54,201.53,28.33815851]
[1738832729117,0.063,201.54,201.53,23.25066851]
[1738832729736,0.063,201.54,201.53,9.46234998]
[1738832729932,0.063,201.54,201.52,9.46234998]
[1738832730126,0.063,201.54,201.5,9.46234998]
[1738832730950,9.46234998,201.56,201.49,9.46234998]
[1738832731115,9.46234998,201.57,201.5,9.46234998]
[1738832731437,91.86234998,201.58,201.51,9.46234998]
[1738832731819,4.961,201.57,201.51,9.46234998]
[1738832732022,9.46234998,201.55,201.48,9.46234998]
[1738832732321,9.46234998,201.55,201.47,9.46234998]
[1738832734033,4.9617,201.54,201.47,9.46234998]
[1738832734429,15.96744998,201.54,201.47,9.46234998]
[1738832734655,9.46234998,201.52,201.46,0.03]
[1738832735563,9.46234998,201.53,201.46,9.49234998]
[1738832736057,15.96744998,201.54,201.46,9.49234998]
[1738832736224,15.96744998,201.54,201.48,9.46234998]
[1738832736225,6.5051,201.54,201.48,9.46234998]
[1738832736422,6.5051,201.54,201.49,9.46234998]
[1738832737362,1.5434,201.54,201.51,9.46234998]
[1738832737953,1.5434,201.54,201.5,9.46234998]
[1738832738722,6.5052,201.54,201.49,14.78033958]
[1738832739157,6.5052,201.54,201.48,15.15680958]
[1738832739630,6.5052,201.54,201.48,0.37647]
[1738832740349,6.5052,201.54,201.47,14.78033958]
[1738832740350,21.28553958,201.54,201.47,14.78033958]
[1738832740666,14.78033958,201.53,201.46,0.03]
[1738832741362,4.9622,201.52,201.46,0.03]
[1738832741532,82.4,201.51,201.46,0.03]
[1738832741730,4.9622,201.52,201.46,0.03]
[1738832741731,82.4,201.5,201.46,0.03]
[1738832741931,82.4,201.5,201.46,14.81033958]
[1738832744266,82.4,201.5,201.48,14.78033958]
[1738832745295,87.3628,201.5,201.46,14.81033958]
[1738832745582,82.4,201.49,201.46,0.03]
[1738832746075,102.14353958,201.48,201.46,0.03]
[1738832746372,104.83223958,201.47,201.46,0.03]
[1738832747552,106.06839436,201.47,201.46,0.03]
[1738832747758,104.83223958,201.47,201.46,0.03]
[1738832748274,27.39573958,201.47,201.46,0.03]
[1738832752083,27.39573958,201.47,201.46,0.0001]
[1738832752084,40.93307811,201.47,201.46,0.0001]
[1738832752265,40.93307811,201.47,201.45,0.0001]
[1738832752266,0.12549,201.46,201.45,0.0001]
[1738832752455,14.90582958,201.46,201.45,0.0001]
[1738832752958,19.86952958,201.46,201.45,0.0001]
[1738832753695,20.0,201.43,201.34,14.78033958]
[1738832753980,14.78033958,201.39,201.33,0.03]
[1738832754178,16.43373958,201.37,201.33,0.03]
[1738832754402,14.78033958,201.36,201.33,0.03]
[1738832754755,1.6534,201.37,201.33,0.03]
[1738832754756,16.43373958,201.37,201.33,0.03]
[1738832754961,4.9662,201.36,201.33,0.03]
[1738832755191,82.4,201.35,201.33,0.03]
[1738832758874,82.4,201.35,201.33,14.81033958]
[1738832759285,82.4,201.34,201.33,14.81033958]
[1738832759701,82.4,201.34,201.33,0.03]
[1738832760386,82.4,201.34,201.33,14.81033958]
[1738832761488,19.74703958,201.34,201.33,0.03]
[1738832761797,24.9667,201.34,201.33,0.03]
[1738832762170,24.23820685,201.34,201.33,0.03]
[1738832762365,4.23820685,201.34,201.33,0.03]
[1738832762582,14.78033958,201.39,201.33,0.03]
[1738832762797,4.9657,201.38,201.33,0.03]
[1738832762999,4.9657,201.38,201.33,14.81033958]
[1738832763173,4.9652,201.4,201.34,14.78033958]
[1738832763373,4.9652,201.4,201.35,14.78033958]
[1738832763573,4.9652,201.4,201.33,0.15549]
[1738832763788,6.2952,201.43,201.38,14.78033958]
[1738832764269,4.9642,201.44,201.39,14.78033958]
[1738832765800,28.72913958,201.46,201.39,14.78033958]
[1738832765985,4.964,201.45,201.39,14.78033958]
[1738832766300,82.4,201.42,201.41,14.78033958]
[1738832768197,4.964,201.45,201.41,14.78033958]
[1738832769311,4.964,201.45,201.4,14.78033958]
[1738832770772,0.063,201.42,201.4,14.78033958]
[1738832771804,0.063,201.42,201.41,15.15680958]
[1738832771989,0.063,201.42,201.36,14.78033958]
[1738832772182,0.063,201.42,201.37,0.37647]
[1738832772383,0.063,201.42,201.38,14.78033958]
[1738832774508,0.063,201.42,201.36,14.78033958]
[1738832774885,0.063,201.42,201.37,15.15680958]
[1738832775091,0.063,201.42,201.4,14.78033958]
[1738832775607,0.063,201.42,201.39,14.78033958]
[1738832775914,0.063,201.42,201.4,14.78033958]
[1738832778412,0.063,201.42,201.41,14.78033958]
[1738832779496,0.063,201.42,201.39,14.78033958]
[1738832780403,0.063,201.42,201.38,14.78033958]
[1738832780888,0.063,201.42,201.36,14.78033958]
[1738832782013,0.063,201.42,201.37,14.78033958]
[1738832782312,0.063,201.42,201.38,14.78033958]
[1738832784812,82.4,201.41,201.36,14.78033958]
[1738832785016,82.4,201.41,201.34,15.15680958]
[1738832785807,97.18033958,201.41,201.33,14.81033958]
[1738832786111,97.18033958,201.4,201.33,0.03]
[1738832786315,14.78033958,201.39,201.33,0.03]
[1738832786832,14.78033958,201.38,201.33,0.03]
[1738832787031,14.78033958,201.36,201.33,0.03]
[1738832787236,14.78033958,201.34,201.33,0.03]
[1738832787592,16.35613958,201.35,201.33,0.03]
[1738832788040,1.5758,201.35,201.33,0.03]
[1738832788318,16.35613958,201.35,201.33,0.03]
[1738832790421,103.47943958,201.34,201.33,0.03]
[1738832791619,21.07943958,201.34,201.33,0.03]
[1738832792517,6.2991,201.34,201.33,0.03]
[1738832793091,21.07943958,201.34,201.33,0.03]
[1738832794619,20.0,201.31,201.28,0.03]
[1738832794839,14.78033958,201.29,201.28,0.03]
[1738832796117,34.78033958,201.31,201.28,0.03]
[1738832797925,6.42459,201.34,201.28,0.03]
[1738832797926,14.78033958,201.32,201.28,0.03]
[1738832799206,97.18033958,201.33,201.28,0.03]
[1738832799414,14.78033958,201.32,201.28,0.03]
[1738832799922,20.0,201.3,201.28,0.03]
[1738832800223,14.78033958,201.29,201.28,0.03]
[1738832800429,34.78033958,201.3,201.28,0.03]
[1738832801814,1.0,201.32,201.28,0.03]
[1738832801815,14.78033958,201.29,201.28,0.03]
[1738832802125,14.78033958,201.3,201.28,0.03]
[1738832803099,14.78033958,201.29,201.28,0.03]
[1738832803526,14.78033958,201.3,201.28,0.03]
[1738832804223,14.78033958,201.33,201.28,0.03]
[1738832804618,14.78033958,201.32,201.28,0.03]
[1738832805921,20.0,201.32,201.28,0.03]
[1738832806427,16.41913958,201.35,201.28,0.03]
[1738832806428,1.6388,201.35,201.29,14.78033958]
[1738832806741,20.0,201.33,201.28,14.81033958]
[1738832807831,14.78033958,201.34,201.28,0.03]
[1738832808030,14.78033958,201.33,201.28,0.03]
[1738832808214,14.78033958,201.32,201.28,0.03]
[1738832809711,97.18033958,201.31,201.28,0.03]
[1738832810334,82.4,201.31,201.28,0.03]
[1738832815616,82.4,201.31,201.29,14.78033958]
[1738832816435,82.4,201.31,201.28,14.81033958]
[1738832816635,82.4,201.31,201.28,9.51029663]
[1738832817555,82.4,201.31,201.29,9.48029663]
[1738832818816,0.063,201.33,201.29,9.48029663]
[1738832821543,0.063,201.33,201.31,9.48029663]
[1738832824027,0.063,201.33,201.32,0.25098]
[1738832826222,0.063,201.33,201.32,13.91380853]
[1738832826423,0.063,201.33,201.32,23.39410516]
[1738832827929,0.063,201.33,201.32,9.60578663]
[1738832828335,0.063,201.33,201.31,9.48029663]
[1738832829034,0.063,201.33,201.32,9.48029663]
[1738832829625,0.063,201.33,201.32,9.85676663]
[1738832830651,0.063,201.33,201.32,48.71698964]
[1738832831860,0.063,201.33,201.32,48.59149964]
[1738832832152,0.063,201.33,201.32,14.80318111]
[1738832833038,0.063,201.33,201.29,14.80318111]
[1738832833230,0.063,201.33,201.28,14.83318111]
[1738832834249,0.063,201.33,201.29,14.80318111]
[1738832834449,0.063,201.33,201.3,14.80318111]
[1738832836362,0.063,201.33,201.32,14.80318111]
[1738832836553,0.063,201.33,201.32,28.59149964]
[1738832836856,0.063,201.33,201.32,28.71698964]
[1738832842740,0.063,201.33,201.32,29.4617972]